[Event "Early-Titled-Tuesday-Blitz-February-13-2024"]
[Site "Chess.com"]
[Date "2024.02.13"]
[Round "11"]
[White "Kunalm64"]
[Black "RaugintaBulba"]
[Result "0-1"]
[WhiteElo "2502"]
[BlackElo "2440"]
[TimeControl "180+1"]
[EndTime "10:11:03 PST"]
[Termination "RaugintaBulba won by resignation"]

1. e4 {[%clk 0:03:00.9]} 1... d5 {[%clk 0:02:43.9]} 2. exd5 {[%clk 0:03:00.3]}
2... Qxd5 {[%clk 0:02:44.8]} 3. Nc3 {[%clk 0:03:00.1]} 3... Qa5 {[%clk
0:02:45.4]} 4. d4 {[%clk 0:02:59.2]} 4... Nf6 {[%clk 0:02:40.9]} 5. Nf3 {[%clk
0:02:59]} 5... c6 {[%clk 0:02:41.2]} 6. Bc4 {[%clk 0:02:59]} 6... Bg4 {[%clk
0:02:38.8]} 7. h3 {[%clk 0:02:58.4]} 7... Bh5 {[%clk 0:02:38.2]} 8. g4 {[%clk
0:02:50.9]} 8... Bg6 {[%clk 0:02:38.2]} 9. Ne5 {[%clk 0:02:51.1]} 9... Nbd7
{[%clk 0:02:35.7]} 10. Nxg6 {[%clk 0:02:47.3]} 10... hxg6 {[%clk 0:02:35.5]} 11.
Bd2 {[%clk 0:02:44.7]} 11... Qb6 {[%clk 0:02:29.5]} 12. Qe2 {[%clk 0:02:44]}
12... Qxd4 {[%clk 0:02:16.9]} 13. O-O-O {[%clk 0:02:43.3]} 13... Qe5 {[%clk
0:02:16.4]} 14. Qf3 {[%clk 0:02:40.2]} 14... Qc5 {[%clk 0:02:13.2]} 15. Bb3
{[%clk 0:02:35.1]} 15... e6 {[%clk 0:02:13.8]} 16. Be3 {[%clk 0:02:27.8]} 16...
Qa5 {[%clk 0:02:14.3]} 17. Rhe1 {[%clk 0:02:23.9]} 17... Bb4 {[%clk 0:02:13.3]}
18. Bd4 {[%clk 0:02:03.6]} 18... O-O {[%clk 0:02:12.3]} 19. a3 {[%clk
0:01:56.3]} 19... Bc5 {[%clk 0:01:59.4]} 20. Bxf6 {[%clk 0:01:30.5]} 20... Nxf6
{[%clk 0:01:58.6]} 21. Ne4 {[%clk 0:01:28.7]} 21... Nxe4 {[%clk 0:01:49.8]} 22.
Rxe4 {[%clk 0:01:27.6]} 22... Rfd8 {[%clk 0:01:50.2]} 23. Ree1 {[%clk
0:01:21.8]} 23... Qb6 {[%clk 0:01:42.1]} 24. Rf1 {[%clk 0:01:08.5]} 24... Rxd1+
{[%clk 0:01:37.8]} 25. Qxd1 {[%clk 0:01:08.6]} 25... Bxf2 {[%clk 0:01:35.7]} 26.
Kb1 {[%clk 0:01:05.8]} 26... Bd4 {[%clk 0:01:26.5]} 27. Ka2 {[%clk 0:00:44.9]}
27... a5 {[%clk 0:01:23]} 28. c3 {[%clk 0:00:43.9]} 28... Bf6 {[%clk 0:01:19.3]}
29. g5 {[%clk 0:00:39.1]} 29... Bxg5 {[%clk 0:01:17.7]} 30. h4 {[%clk
0:00:14.2]} 30... Rd8 {[%clk 0:01:07.3]} 31. Qg4 {[%clk 0:00:13.4]} 31... Bf6
{[%clk 0:01:04.7]} 32. h5 {[%clk 0:00:13]} 32... a4 {[%clk 0:01:03.1]} 33. Qxa4
{[%clk 0:00:12.4]} 33... gxh5 {[%clk 0:00:56.2]} 34. Qe4 {[%clk 0:00:12.3]}
34... Rd2 {[%clk 0:00:42.2]} 35. Qf4 {[%clk 0:00:11]} 35... Qd8 {[%clk 0:00:33]}
36. Rg1 {[%clk 0:00:10.1]} 36... Bxc3 {[%clk 0:00:30.8]} 37. Rb1 {[%clk
0:00:06]} 37... Qf6 {[%clk 0:00:30.2]} 38. Qe4 {[%clk 0:00:04.1]} 38... Bxb2
{[%clk 0:00:24.7]} 39. Bc2 {[%clk 0:00:04.4]} 39... g6 {[%clk 0:00:20.6]} 40.
Rxb2 {[%clk 0:00:04.2]} 40... Qc3 {[%clk 0:00:11.9]} 41. Qb4 {[%clk 0:00:04.4]}
41... Rxc2 {[%clk 0:00:09.8]} 42. Qxb7 {[%clk 0:00:02.8]} 42... Rxb2+ {[%clk
0:00:09.6]} 43. Qxb2 {[%clk 0:00:03.5]} 43... Qxb2+ {[%clk 0:00:07.7]} 44. Kxb2
{[%clk 0:00:04.4]} 44... h4 {[%clk 0:00:08.5]} 45. a4 {[%clk 0:00:04.9]} 45...
h3 {[%clk 0:00:09.4]} 46. a5 {[%clk 0:00:05.8]} 46... h2 {[%clk 0:00:10.3]} 47.
a6 {[%clk 0:00:06.7]} 47... h1=Q {[%clk 0:00:10.8]} 48. a7 {[%clk 0:00:07.6]}
48... Qh2+ {[%clk 0:00:08.8]} 49. Kb3 {[%clk 0:00:07.9]} 49... Qg3+ {[%clk
0:00:08.6]} 50. Kb4 {[%clk 0:00:08]} 50... Qe1+ {[%clk 0:00:08.5]} 51. Kc5
{[%clk 0:00:08.2]} 51... Qf2+ {[%clk 0:00:08.1]} 52. Kxc6 {[%clk 0:00:09.1]}
52... Qxa7 {[%clk 0:00:08.7]} 53. Kd6 {[%clk 0:00:09.7]} 53... g5 {[%clk
0:00:08.7]} 54. Ke5 {[%clk 0:00:10.6]} 54... Kg7 {[%clk 0:00:07.9]} 55. Ke4
{[%clk 0:00:10.7]} 55... Qc5 {[%clk 0:00:07.3]} 56. Kf3 {[%clk 0:00:11.6]} 56...
Qf5+ {[%clk 0:00:07.8]} 57. Kg3 {[%clk 0:00:11.9]} 57... Qf4+ {[%clk 0:00:08.1]}
58. Kh3 {[%clk 0:00:12.1]} 58... g4+ {[%clk 0:00:08.6]} 59. Kh4 {[%clk
0:00:12.5]} 59... g3+ {[%clk 0:00:09.1]} 60. Kh5 {[%clk 0:00:13]} 60... Qf5+
{[%clk 0:00:08]} 61. Kh4 {[%clk 0:00:13.2]} 61... g2 {[%clk 0:00:08.5]} 62. Kg3
{[%clk 0:00:13.6]} 62... g1=Q+ {[%clk 0:00:08.6]} 63. Kh4 {[%clk 0:00:14.1]}
63... Qa7 {[%clk 0:00:05.8]} 64. Kg3 {[%clk 0:00:13.8]} 64... e5 {[%clk
0:00:06.3]} 65. Kh4 {[%clk 0:00:14]} 65... e4 {[%clk 0:00:06.9]} 0-1

[Event "Early-Titled-Tuesday-Blitz-February-13-2024"]
[Site "Chess.com"]
[Date "2024.02.13"]
[Round "11"]
[White "theoneandonlydaaevik"]
[Black "PepeCuenca"]
[Result "0-1"]
[WhiteElo "2508"]
[BlackElo "2686"]
[TimeControl "180+1"]
[EndTime "10:11:04 PST"]
[Termination "PepeCuenca won by resignation"]

1. Nf3 {[%clk 0:03:00.9]} 1... Nf6 {[%clk 0:02:59.4]} 2. g3 {[%clk 0:02:58.8]}
2... g6 {[%clk 0:02:58.4]} 3. b3 {[%clk 0:02:59.3]} 3... Bg7 {[%clk 0:02:59.3]}
4. Bb2 {[%clk 0:02:59.5]} 4... O-O {[%clk 0:03:00]} 5. Bg2 {[%clk 0:03:00.1]}
5... b6 {[%clk 0:02:56.7]} 6. O-O {[%clk 0:02:57.4]} 6... Bb7 {[%clk 0:02:56.9]}
7. c4 {[%clk 0:02:58.3]} 7... c5 {[%clk 0:02:50.1]} 8. d4 {[%clk 0:02:58.1]}
8... cxd4 {[%clk 0:02:50.3]} 9. Qxd4 {[%clk 0:02:51.4]} 9... d6 {[%clk
0:02:46.6]} 10. Rd1 {[%clk 0:02:44]} 10... Nbd7 {[%clk 0:02:45.9]} 11. Nc3
{[%clk 0:02:29.8]} 11... Ne4 {[%clk 0:02:25.4]} 12. Qe3 {[%clk 0:02:27]} 12...
Nxc3 {[%clk 0:02:22.9]} 13. Bxc3 {[%clk 0:02:27.9]} 13... Bxc3 {[%clk
0:02:23.4]} 14. Qxc3 {[%clk 0:02:28.8]} 14... Qc7 {[%clk 0:02:15.5]} 15. h4
{[%clk 0:02:23.5]} 15... Nf6 {[%clk 0:02:04.4]} 16. Rac1 {[%clk 0:02:15.5]}
16... Rac8 {[%clk 0:02:03]} 17. Qe3 {[%clk 0:01:55.3]} 17... Rfe8 {[%clk
0:01:49.7]} 18. Nd4 {[%clk 0:01:46.3]} 18... Bxg2 {[%clk 0:01:45.2]} 19. Kxg2
{[%clk 0:01:47.2]} 19... Qc5 {[%clk 0:01:40.9]} 20. Qf3 {[%clk 0:01:33.3]} 20...
h5 {[%clk 0:01:36.8]} 21. e3 {[%clk 0:01:22.7]} 21... Ng4 {[%clk 0:01:33.9]} 22.
Qd5 {[%clk 0:01:15]} 22... Nf6 {[%clk 0:01:22.9]} 23. Qxc5 {[%clk 0:01:11.7]}
23... bxc5 {[%clk 0:01:22.4]} 24. Nb5 {[%clk 0:01:12.1]} 24... a6 {[%clk
0:01:11.2]} 25. Nc3 {[%clk 0:01:11.8]} 25... Kf8 {[%clk 0:01:06.5]} 26. Kf3
{[%clk 0:01:05.9]} 26... Rb8 {[%clk 0:01:05.8]} 27. Nd5 {[%clk 0:01:00.4]} 27...
Nxd5 {[%clk 0:00:59.4]} 28. Rxd5 {[%clk 0:01:01.3]} 28... a5 {[%clk 0:00:59.7]}
29. Rc2 {[%clk 0:00:50.9]} 29... a4 {[%clk 0:00:59.3]} 30. Rd3 {[%clk
0:00:48.4]} 30... Rb4 {[%clk 0:00:59]} 31. Ke2 {[%clk 0:00:43.8]} 31... Reb8
{[%clk 0:00:58.5]} 32. Rcc3 {[%clk 0:00:44]} 32... Ra8 {[%clk 0:00:55.3]} 33.
Rd2 {[%clk 0:00:42.3]} 33... axb3 {[%clk 0:00:51.3]} 34. axb3 {[%clk 0:00:43.2]}
34... Ra1 {[%clk 0:00:50.2]} 35. Kd3 {[%clk 0:00:39.6]} 35... Ke8 {[%clk
0:00:48.4]} 36. Kc2 {[%clk 0:00:35.2]} 36... Kd7 {[%clk 0:00:45.2]} 37. Rcd3
{[%clk 0:00:27.6]} 37... Ra2+ {[%clk 0:00:38.1]} 38. Kc3 {[%clk 0:00:27.2]}
38... Ra1 {[%clk 0:00:35.6]} 39. Kb2 {[%clk 0:00:25.7]} 39... Rf1 {[%clk
0:00:33.2]} 40. Re2 {[%clk 0:00:24]} 40... Ke6 {[%clk 0:00:31.7]} 41. Ka2 {[%clk
0:00:18.2]} 41... Rb8 {[%clk 0:00:31.3]} 42. Kb2 {[%clk 0:00:16.3]} 42... Ra8
{[%clk 0:00:31.2]} 43. Rdd2 {[%clk 0:00:13.9]} 43... Raa1 {[%clk 0:00:28]} 44.
Kc3 {[%clk 0:00:13.2]} 44... Rac1+ {[%clk 0:00:21.8]} 45. Rc2 {[%clk 0:00:08.7]}
45... Ke5 {[%clk 0:00:21.6]} 46. Kd3 {[%clk 0:00:08.5]} 46... Rfd1+ {[%clk
0:00:19.6]} 47. Rcd2 {[%clk 0:00:08]} 47... Rxd2+ {[%clk 0:00:13.2]} 48. Rxd2
{[%clk 0:00:08.9]} 48... Rb1 {[%clk 0:00:12]} 49. Kc2 {[%clk 0:00:08.9]} 49...
Ra1 {[%clk 0:00:11.9]} 50. Kd3 {[%clk 0:00:08]} 50... Kf5 {[%clk 0:00:09.9]} 51.
Ke2 {[%clk 0:00:04.4]} 51... Rb1 {[%clk 0:00:07.1]} 52. Rd3 {[%clk 0:00:03.9]}
52... Kg4 {[%clk 0:00:05.8]} 53. e4 {[%clk 0:00:03.2]} 53... Rb2+ {[%clk
0:00:04]} 54. Ke3 {[%clk 0:00:03]} 54... Kh3 {[%clk 0:00:04.4]} 55. Rd1 {[%clk
0:00:02.1]} 55... Kg2 {[%clk 0:00:04.1]} 56. Rd3 {[%clk 0:00:01.6]} 56... Rxf2
{[%clk 0:00:04.2]} 0-1

[Event "Early-Titled-Tuesday-Blitz-February-13-2024"]
[Site "Chess.com"]
[Date "2024.02.13"]
[Round "11"]
[White "N_I_Chess"]
[Black "Austen48"]
[Result "0-1"]
[WhiteElo "2286"]
[BlackElo "2245"]
[TimeControl "180+1"]
[EndTime "10:11:07 PST"]
[Termination "Austen48 won by checkmate"]

1. d4 {[%clk 0:03:00.9]} 1... Nf6 {[%clk 0:02:58.6]} 2. c4 {[%clk 0:02:59.7]}
2... e6 {[%clk 0:02:58.2]} 3. Nc3 {[%clk 0:03:00.2]} 3... Bb4 {[%clk 0:02:57.3]}
4. Nf3 {[%clk 0:02:59.3]} 4... O-O {[%clk 0:02:56.8]} 5. e3 {[%clk 0:02:58.9]}
5... Re8 {[%clk 0:02:54.4]} 6. Bd3 {[%clk 0:02:58.7]} 6... d5 {[%clk 0:02:44.8]}
7. cxd5 {[%clk 0:02:56.3]} 7... Nxd5 {[%clk 0:02:42.7]} 8. Bd2 {[%clk 0:02:56]}
8... Nxc3 {[%clk 0:02:41.1]} 9. bxc3 {[%clk 0:02:55.5]} 9... Bf8 {[%clk
0:02:41.4]} 10. Qc2 {[%clk 0:02:56.4]} 10... h6 {[%clk 0:02:38.6]} 11. O-O
{[%clk 0:02:56.3]} 11... c5 {[%clk 0:02:37.8]} 12. e4 {[%clk 0:02:41.8]} 12...
cxd4 {[%clk 0:02:33.2]} 13. cxd4 {[%clk 0:02:42.7]} 13... Nc6 {[%clk 0:02:33.1]}
14. Bc3 {[%clk 0:02:42.5]} 14... Nb4 {[%clk 0:02:28.6]} 15. Qe2 {[%clk
0:02:30.4]} 15... Nxd3 {[%clk 0:02:25.3]} 16. Qxd3 {[%clk 0:02:31.3]} 16... b6
{[%clk 0:02:17.4]} 17. Qe3 {[%clk 0:02:30.2]} 17... Bb7 {[%clk 0:02:15.4]} 18.
a4 {[%clk 0:02:28.6]} 18... Rc8 {[%clk 0:02:13.9]} 19. a5 {[%clk 0:02:28.6]}
19... b5 {[%clk 0:02:13.2]} 20. Rfc1 {[%clk 0:02:24.5]} 20... a6 {[%clk
0:02:12.4]} 21. Ne5 {[%clk 0:02:19.2]} 21... Qg5 {[%clk 0:02:03.7]} 22. Qxg5
{[%clk 0:02:13.3]} 22... hxg5 {[%clk 0:02:03.1]} 23. f3 {[%clk 0:02:13.8]} 23...
Red8 {[%clk 0:01:57.1]} 24. Kf2 {[%clk 0:02:06.7]} 24... Bd6 {[%clk 0:01:45.9]}
25. Nd3 {[%clk 0:02:04.3]} 25... Rc4 {[%clk 0:01:32.6]} 26. g3 {[%clk
0:01:39.6]} 26... Kf8 {[%clk 0:01:08.3]} 27. Ke3 {[%clk 0:01:38.8]} 27... Ke7
{[%clk 0:01:08.2]} 28. Bd2 {[%clk 0:01:36.9]} 28... Rxd4 {[%clk 0:00:58.2]} 29.
Kxd4 {[%clk 0:01:23.5]} 29... Bf4+ {[%clk 0:00:34.7]} 30. Kc3 {[%clk 0:01:14.1]}
30... Rc8+ {[%clk 0:00:32.9]} 31. Kb3 {[%clk 0:01:04.9]} 31... Bxd2 {[%clk
0:00:32.5]} 32. Rxc8 {[%clk 0:01:04.5]} 32... Bxc8 {[%clk 0:00:33.1]} 33. Nc5
{[%clk 0:01:02.2]} 33... Be3 {[%clk 0:00:31.7]} 34. Nd3 {[%clk 0:00:59]} 34...
Bd4 {[%clk 0:00:30.3]} 35. Rc1 {[%clk 0:00:57.9]} 35... Kd8 {[%clk 0:00:26.7]}
36. Nb4 {[%clk 0:00:53.7]} 36... Be3 {[%clk 0:00:21.7]} 37. Rc3 {[%clk 0:00:49]}
37... Bg1 {[%clk 0:00:21]} 38. h3 {[%clk 0:00:48.8]} 38... Bf2 {[%clk
0:00:20.1]} 39. Nc6+ {[%clk 0:00:46]} 39... Ke8 {[%clk 0:00:16.8]} 40. g4 {[%clk
0:00:43.1]} 40... f6 {[%clk 0:00:16.5]} 41. Ne5 {[%clk 0:00:41.2]} 41... Kd8
{[%clk 0:00:14.7]} 42. Nd3 {[%clk 0:00:39.1]} 42... Bd4 {[%clk 0:00:13.4]} 43.
Rc2 {[%clk 0:00:37.3]} 43... e5 {[%clk 0:00:14]} 44. Nb4 {[%clk 0:00:36.8]}
44... Be6+ {[%clk 0:00:13.9]} 45. Ka3 {[%clk 0:00:34.7]} 45... Bc4 {[%clk
0:00:13.7]} 46. Nc6+ {[%clk 0:00:34.6]} 46... Kc7 {[%clk 0:00:13.5]} 47. Nxd4
{[%clk 0:00:35.5]} 47... exd4 {[%clk 0:00:13.6]} 48. Kb4 {[%clk 0:00:35.6]}
48... d3 {[%clk 0:00:13.9]} 49. Rd2 {[%clk 0:00:35.4]} 49... Kd6 {[%clk
0:00:14.5]} 50. Kc3 {[%clk 0:00:32]} 50... Ke5 {[%clk 0:00:14.5]} 51. h4 {[%clk
0:00:24.8]} 51... gxh4 {[%clk 0:00:12.9]} 52. Rh2 {[%clk 0:00:25]} 52... g5
{[%clk 0:00:13.2]} 53. Kd2 {[%clk 0:00:18.4]} 53... Kf4 {[%clk 0:00:13.7]} 54.
Rf2 {[%clk 0:00:18.9]} 54... Kg3 {[%clk 0:00:13.5]} 55. Ke3 {[%clk 0:00:19.6]}
55... h3 {[%clk 0:00:12.7]} 56. e5 {[%clk 0:00:19.3]} 56... fxe5 {[%clk
0:00:11.9]} 57. Rf1 {[%clk 0:00:20.2]} 57... h2 {[%clk 0:00:11.6]} 58. Rh1
{[%clk 0:00:20.2]} 58... Kg2 {[%clk 0:00:11.8]} 59. Rd1 {[%clk 0:00:20.5]} 59...
h1=Q {[%clk 0:00:11.6]} 60. Rxh1 {[%clk 0:00:21.4]} 60... Kxh1 {[%clk
0:00:11.8]} 61. Kd2 {[%clk 0:00:22.3]} 61... Kg2 {[%clk 0:00:12]} 62. Ke3 {[%clk
0:00:23.2]} 62... Kg3 {[%clk 0:00:12.3]} 63. f4 {[%clk 0:00:20.4]} 63... exf4+
{[%clk 0:00:11.6]} 64. Ke4 {[%clk 0:00:21.3]} 64... Kxg4 {[%clk 0:00:12]} 65.
Kd4 {[%clk 0:00:20.8]} 65... d2 {[%clk 0:00:12.6]} 66. Kc5 {[%clk 0:00:21.3]}
66... d1=Q {[%clk 0:00:13]} 67. Kb4 {[%clk 0:00:22.2]} 67... Qb3+ {[%clk
0:00:12.6]} 68. Kc5 {[%clk 0:00:23.1]} 68... Qa3+ {[%clk 0:00:12.7]} 69. Kb6
{[%clk 0:00:24]} 69... Qxa5+ {[%clk 0:00:13.2]} 70. Kxa5 {[%clk 0:00:24.9]}
70... f3 {[%clk 0:00:13.5]} 71. Kb4 {[%clk 0:00:25.8]} 71... f2 {[%clk
0:00:13.9]} 72. Kc5 {[%clk 0:00:26.7]} 72... f1=Q {[%clk 0:00:14]} 73. Kb4
{[%clk 0:00:27.6]} 73... Qd3 {[%clk 0:00:14.1]} 74. Ka5 {[%clk 0:00:28.5]} 74...
Be6 {[%clk 0:00:14]} 75. Kb6 {[%clk 0:00:29.4]} 75... b4 {[%clk 0:00:13.7]} 76.
Ka5 {[%clk 0:00:30.3]} 76... b3 {[%clk 0:00:14]} 77. Kb4 {[%clk 0:00:30.9]}
77... b2 {[%clk 0:00:14.3]} 78. Ka5 {[%clk 0:00:31.4]} 78... b1=Q {[%clk
0:00:14]} 79. Ka4 {[%clk 0:00:30.9]} 79... Qdb3+ {[%clk 0:00:14.5]} 80. Ka5
{[%clk 0:00:31.2]} 80... Qb5# {[%clk 0:00:14.5]} 0-1

[Event "Early-Titled-Tuesday-Blitz-February-13-2024"]
[Site "Chess.com"]
[Date "2024.02.13"]
[Round "11"]
[White "ChainedDowntohell"]
[Black "banhgiahuy2606"]
[Result "1-0"]
[WhiteElo "2561"]
[BlackElo "2668"]
[TimeControl "180+1"]
[EndTime "10:11:12 PST"]
[Termination "ChainedDowntohell won by resignation"]

1. d4 {[%clk 0:03:00.9]} 1... Nf6 {[%clk 0:02:54]} 2. c4 {[%clk 0:03:00.4]} 2...
g6 {[%clk 0:02:52.5]} 3. Nc3 {[%clk 0:03:00.1]} 3... Bg7 {[%clk 0:02:53.2]} 4.
e4 {[%clk 0:03:00.4]} 4... d6 {[%clk 0:02:53.8]} 5. Nf3 {[%clk 0:02:59.6]} 5...
O-O {[%clk 0:02:54.3]} 6. Be2 {[%clk 0:03:00.2]} 6... e5 {[%clk 0:02:52.4]} 7.
d5 {[%clk 0:03:00.2]} 7... a5 {[%clk 0:02:50.9]} 8. Bg5 {[%clk 0:02:56.1]} 8...
Na6 {[%clk 0:02:50]} 9. Qc2 {[%clk 0:02:52.9]} 9... h6 {[%clk 0:02:49.5]} 10.
Be3 {[%clk 0:02:50.4]} 10... Ng4 {[%clk 0:02:49.6]} 11. Bd2 {[%clk 0:02:50]}
11... f5 {[%clk 0:02:49.3]} 12. h3 {[%clk 0:02:18.9]} 12... Nf6 {[%clk
0:02:43.1]} 13. Be3 {[%clk 0:01:58.1]} 13... Nb4 {[%clk 0:02:34.1]} 14. Qb1
{[%clk 0:01:57.3]} 14... fxe4 {[%clk 0:02:30.6]} 15. Nxe4 {[%clk 0:01:57]} 15...
Nxe4 {[%clk 0:02:30.2]} 16. a3 {[%clk 0:01:51.1]} 16... Bf5 {[%clk 0:02:24.6]}
17. g4 {[%clk 0:01:35.3]} 17... Nc3 {[%clk 0:02:09.2]} 18. gxf5 {[%clk
0:01:25.8]} 18... Nxb1 {[%clk 0:02:08.8]} 19. axb4 {[%clk 0:01:25.8]} 19... e4
{[%clk 0:02:06]} 20. Nd4 {[%clk 0:01:20.4]} 20... Bxd4 {[%clk 0:02:00.4]} 21.
Bxd4 {[%clk 0:01:19.5]} 21... Rxf5 {[%clk 0:01:58.5]} 22. Rxb1 {[%clk
0:01:18.3]} 22... axb4 {[%clk 0:01:58.4]} 23. Rg1 {[%clk 0:01:16.6]} 23... Kh7
{[%clk 0:01:58.3]} 24. Rg3 {[%clk 0:01:15.4]} 24... Qh4 {[%clk 0:01:54.7]} 25.
Kd2 {[%clk 0:01:01.3]} 25... Raf8 {[%clk 0:01:47]} 26. Rbg1 {[%clk 0:01:00.4]}
26... Rxf2 {[%clk 0:01:17.8]} 27. Rxg6 {[%clk 0:00:49.1]} 27... Rxe2+ {[%clk
0:01:12.6]} 28. Kxe2 {[%clk 0:00:50]} 28... Qh5+ {[%clk 0:01:08.8]} 29. R6g4
{[%clk 0:00:50.4]} 29... Rg8 {[%clk 0:00:58.1]} 30. Ke1 {[%clk 0:00:41.7]} 30...
Rg5 {[%clk 0:00:57.9]} 31. Bf6 {[%clk 0:00:18.7]} 31... Qxh3 {[%clk 0:00:37.9]}
32. Bxg5 {[%clk 0:00:18]} 32... hxg5 {[%clk 0:00:37.9]} 33. R4g3 {[%clk
0:00:14.3]} 33... Qh4 {[%clk 0:00:33.8]} 34. Ke2 {[%clk 0:00:13]} 34... Kg6
{[%clk 0:00:33.5]} 35. R1g2 {[%clk 0:00:06.8]} 35... Qf4 {[%clk 0:00:33.4]} 36.
Rg1 {[%clk 0:00:03.2]} 36... Qe5 {[%clk 0:00:33]} 37. Ke3 {[%clk 0:00:02]} 37...
Qf4+ {[%clk 0:00:23.5]} 38. Ke2 {[%clk 0:00:02.2]} 38... e3 {[%clk 0:00:19.9]}
39. Rxe3 {[%clk 0:00:01.6]} 39... Qxc4+ {[%clk 0:00:20]} 40. Kf2 {[%clk
0:00:01.7]} 40... Qf4+ {[%clk 0:00:18.5]} 41. Ke2 {[%clk 0:00:01.9]} 41... Qc4+
{[%clk 0:00:18.8]} 42. Kf2 {[%clk 0:00:02.3]} 42... Qxd5 {[%clk 0:00:19.2]} 43.
Rge1 {[%clk 0:00:02]} 43... Qf5+ {[%clk 0:00:18.8]} 44. Kg2 {[%clk 0:00:02]}
44... d5 {[%clk 0:00:17.8]} 45. Re6+ {[%clk 0:00:01.4]} 45... Kf7 {[%clk
0:00:17.5]} 46. R6e3 {[%clk 0:00:01.6]} 46... Qg4+ {[%clk 0:00:14.9]} 47. Rg3
{[%clk 0:00:01.7]} 47... Qd4 {[%clk 0:00:14.6]} 48. Rf3+ {[%clk 0:00:02.3]}
48... Kg6 {[%clk 0:00:12.5]} 49. Re2 {[%clk 0:00:02.7]} 49... g4 {[%clk
0:00:12.4]} 50. Rg3 {[%clk 0:00:02.5]} 50... Kg5 {[%clk 0:00:11.6]} 51. Rge3
{[%clk 0:00:03.1]} 51... Kf4 {[%clk 0:00:09]} 52. Re8 {[%clk 0:00:04]} 52... Qg7
{[%clk 0:00:05.8]} 53. R8e7 {[%clk 0:00:02.9]} 53... Qh6 {[%clk 0:00:04.4]} 54.
Re8 {[%clk 0:00:03.4]} 54... Qh3+ {[%clk 0:00:04.1]} 55. Kg1 {[%clk 0:00:04.3]}
55... d4 {[%clk 0:00:01.1]} 56. Rf2+ {[%clk 0:00:03.8]} 56... Kg5 {[%clk
0:00:01.6]} 57. Rg8+ {[%clk 0:00:03.8]} 57... Kh4 {[%clk 0:00:01.1]} 58. Rh8+
{[%clk 0:00:04.7]} 58... Kg3 {[%clk 0:00:01.6]} 59. Rxh3+ {[%clk 0:00:05.4]}
59... Kxh3 {[%clk 0:00:01.8]} 60. Rf7 {[%clk 0:00:03.8]} 60... g3 {[%clk
0:00:02.7]} 61. Rxc7 {[%clk 0:00:02.7]} 1-0